fUST/lending_fUST_20240912
["ID","MTS","AMOUNT","RATE_DAILY","PERIOD"]
[337781987,1726114241531,-500.0,0.00021917,2]
[337781988,1726114241541,-507.43112107,0.00021917,2]
[337781989,1726114241553,-500.0,0.00021917,2]
[337781990,1726114241563,-500.0,0.00021917,2]
[337781991,1726114241573,-500.0,0.00021917,2]
[337781992,1726114241583,-500.0,0.00021917,2]
[337781993,1726114241593,-500.0,0.00021917,2]
[337781994,1726114241602,-381.63235164,0.00021917,2]
[337781995,1726114241612,-500.0,0.00021917,2]
[337781996,1726114241621,-507.6758269,0.00021917,2]
[337781997,1726114241630,-500.0,0.00021917,2]
[337781998,1726114241639,-500.0,0.00021917,2]
[337781999,1726114241649,-500.0,0.00021917,2]
[337782000,1726114241658,-581.15,0.00021917,2]
[337782001,1726114241667,-500.0,0.00021917,2]
[337782002,1726114241676,-500.0,0.00021917,2]
[337782003,1726114241685,-500.0,0.00021917,2]
[337782004,1726114241696,-500.0,0.00021917,2]
[337782005,1726114241706,-500.0,0.00021917,2]
[337782006,1726114241717,-1675.76,0.00021917,2]
[337782007,1726114241728,-500.0,0.00021917,2]
[337782008,1726114241738,-500.0,0.00021917,2]
[337782009,1726114241749,-500.0,0.00021917,2]
[337782010,1726114241760,-1195.5,0.00021917,2]
[337782011,1726114241770,-500.0,0.00021917,2]
[337782012,1726114241779,-1260.64,0.00021917,2]
[337782013,1726114241789,-500.0,0.00021917,2]
[337782014,1726114241798,-500.0,0.00021917,2]
[337782015,1726114241807,-500.0,0.00021917,2]
[337782016,1726114241817,-802.21,0.00021917,2]
[337782017,1726114241827,-526.19,0.00021917,2]
[337782018,1726114241836,-500.0,0.00021917,2]
[337782019,1726114241846,-504.886737,0.00021917,2]
[337782020,1726114241855,-500.0,0.00021917,2]
[337782021,1726114241864,-502.78430225,0.00021917,2]
[337782022,1726114241873,-500.0,0.00021917,2]
[337782023,1726114241883,-796.68,0.00021917,2]
[337782024,1726114241892,-500.0,0.00021917,2]
[337782025,1726114241901,-510.92223258,0.00021917,2]
[337782026,1726114241911,-500.0,0.00021917,2]
[337782027,1726114241921,-1814.95,0.00021917,2]
[337782028,1726114241930,-536.14825483,0.00021917,2]
[337782029,1726114241940,-500.0,0.00021917,2]
[337782030,1726114241949,-500.0,0.00021917,2]
[337782031,1726114241958,-500.0,0.00021917,2]
[337782032,1726114241968,-523.91051114,0.00021917,2]
[337782033,1726114241977,-508.16,0.00021917,2]
[337782034,1726114241986,-500.0,0.00021917,2]
[337782035,1726114241995,-500.0,0.00021917,2]
[337782036,1726114242004,-500.0,0.00021917,2]
[337782037,1726114242013,-645.23,0.00021917,2]
[337782038,1726114242022,-500.0,0.00021917,2]
[337782039,1726114242031,-505.40691424,0.00021917,2]
[337782040,1726114242041,-500.0,0.00021917,2]
[337782041,1726114242050,-500.0,0.00021917,2]
[337782042,1726114242059,-500.0,0.00021917,2]
[337782043,1726114242068,-500.0,0.00021917,2]
[337782044,1726114242078,-500.0,0.00021917,2]
[337782045,1726114242087,-1169.02,0.00021917,2]
[337782046,1726114242096,-500.0,0.00021917,2]
[337782047,1726114242105,-500.0,0.00021917,2]
[337782048,1726114242114,-500.0,0.00021917,2]
[337782049,1726114242123,-500.0,0.00021917,2]
[337782050,1726114242133,-500.0,0.00021917,2]
[337782051,1726114242142,-500.0,0.00021917,2]
[337782052,1726114242151,-500.0,0.00021917,2]
[337782053,1726114242162,-553.86701682,0.00021917,2]
[337782054,1726114242171,-500.0,0.00021917,2]
[337782055,1726114242180,-500.0,0.00021917,2]
[337782056,1726114242189,-386.83438056,0.00021917,2]
[337782057,1726114242198,-1266.94,0.00021917,2]
[337782058,1726114242208,-500.0,0.00021917,2]
[337782059,1726114242217,-500.0,0.00021917,2]
[337782060,1726114242225,-500.0,0.00021917,2]
[337782061,1726114242234,-490.37470131,0.00021917,2]
[337782062,1726114242243,-517.80010359,0.00021917,2]
[337782063,1726114242253,-500.84350394,0.00021917,2]
[337782064,1726114242263,-500.0,0.00021917,2]
[337782065,1726114242275,-500.0,0.00021917,2]
[337782066,1726114242285,-646.8,0.00021917,2]
[337782067,1726114242295,-700.94,0.00021917,2]
[337782068,1726114242305,-509.28939284,0.00021917,2]
[337782069,1726114242315,-504.52373986,0.00021917,2]
[337782070,1726114242325,-500.0,0.00021917,2]
[337782071,1726114242335,-451.90440514,0.00021917,2]
[337782072,1726114242344,-749.94,0.00021917,2]
[337782073,1726114242354,-500.0,0.00021917,2]
[337782074,1726114242363,-501.25665635,0.00021917,2]
[337782075,1726114242372,-500.0,0.00021917,2]
[337782076,1726114242381,-473.00106924,0.00021917,2]
[337782077,1726114242390,-500.0,0.00021917,2]
[337782078,1726114242400,-500.0,0.00021917,2]
[337782079,1726114242409,-500.0,0.00021917,2]
[337782080,1726114242418,-500.0,0.00021917,2]
[337782081,1726114242427,-500.0,0.00021917,2]
[337782082,1726114242437,-509.6,0.00021917,2]
[337782083,1726114242447,-500.0,0.00021917,2]
[337782084,1726114242456,-505.57282194,0.00021917,2]
[337782085,1726114242466,-844.45,0.00021917,2]
[337782086,1726114242475,-500.0,0.00021917,2]
[337782087,1726114242485,-504.29242289,0.00021917,2]
[337782088,1726114242494,-500.0,0.00021917,2]
[337782089,1726114242503,-500.0,0.00021917,2]
[337782090,1726114242513,-500.0,0.00021917,2]
[337782091,1726114242522,-1139.35,0.00021917,2]
[337782092,1726114242531,-503.34619687,0.00021917,2]
[337782093,1726114242540,-362.10017985,0.00021917,2]
[337782094,1726114242549,-500.0,0.00021917,2]
[337782095,1726114242558,-794.64,0.00021917,2]
[337782096,1726114242568,-883.51,0.00021917,2]
[337782097,1726114242577,-871.58,0.00021917,2]
[337782098,1726114242587,-500.0,0.00021917,2]
[337782099,1726114242596,-516.62882971,0.00021917,2]
[337782100,1726114242605,-500.0,0.00021917,2]
[337782101,1726114242615,-500.0,0.00021917,2]
[337782102,1726114242624,-500.0,0.00021917,2]
[337782103,1726114242634,-501.42777944,0.00021917,2]
[337782104,1726114242643,-500.0,0.00021917,2]
[337782105,1726114242652,-500.0,0.00021917,2]
[337782106,1726114242663,-502.80020864,0.00021917,2]
[337782107,1726114242672,-500.30966426,0.00021917,2]
[337782108,1726114242681,-1292.16,0.00021917,2]
[337782109,1726114242691,-502.84699057,0.00021917,2]
[337782110,1726114242700,-513.15700449,0.00021917,2]
[337782111,1726114242710,-500.0,0.00021917,2]
[337782112,1726114242719,-184.57723403,0.00021917,2]
[337782113,1726114242730,-500.0,0.00021917,2]
[337782114,1726114242740,-500.0,0.00021917,2]
[337782115,1726114242749,-500.0,0.00021917,2]
[337782116,1726114242758,-500.0,0.00021917,2]
[337782117,1726114242768,-500.0,0.00021917,2]
[337782118,1726114242777,-500.0,0.00021917,2]
[337782119,1726114242786,-640.88,0.00021917,2]
[337782120,1726114242795,-1365.29,0.00021917,2]
[337782121,1726114242804,-500.0,0.00021917,2]
[337782122,1726114242814,-393.57278461,0.00021917,2]
[337782123,1726114242823,-500.0,0.00021917,2]
[337782124,1726114242833,-500.0,0.00021917,2]
[337782125,1726114242842,-1609.15,0.00021917,2]
[337782126,1726114242851,-500.0,0.00021917,2]
[337782127,1726114242861,-500.0,0.00021917,2]
[337782128,1726114242871,-500.0,0.00021917,2]
[337782129,1726114242880,-500.0,0.00021917,2]
[337782130,1726114242890,-500.0,0.00021917,2]
[337782131,1726114242899,-500.0,0.00021917,2]
[337782132,1726114242910,-500.0,0.00021917,2]
[337782133,1726114242919,-500.0,0.00021917,2]
[337782134,1726114242929,-500.0,0.00021917,2]
[337782135,1726114242938,-500.0,0.00021917,2]
[337782136,1726114242948,-500.0,0.00021917,2]
[337782137,1726114242957,-500.0,0.00021917,2]
[337782138,1726114242967,-1193.33,0.00021917,2]
[337782139,1726114242977,-500.0,0.00021917,2]
[337782140,1726114242986,-500.0,0.00021917,2]
[337782141,1726114242996,-177.96656176,0.00021917,2]
[337782142,1726114243005,-502.76981014,0.00021917,2]
[337782143,1726114243015,-500.0,0.00021917,2]
[337782144,1726114243024,-531.3,0.00021917,2]
[337782145,1726114243034,-500.0,0.00021917,2]
[337782146,1726114243043,-501.04321213,0.00021917,2]
[337782147,1726114243053,-503.34334249,0.00021917,2]
[337782148,1726114243063,-500.0,0.00021917,2]
[337782149,1726114243072,-500.0,0.00021917,2]
[337782150,1726114243082,-732.41,0.00021917,2]
[337782151,1726114243091,-500.0,0.00021917,2]
[337782152,1726114243101,-500.0,0.00021917,2]
[337782153,1726114243110,-631.5,0.00021917,2]
[337782154,1726114243119,-500.0,0.00021917,2]
[337782155,1726114243129,-500.0,0.00021917,2]
[337782156,1726114243138,-502.57664126,0.00021917,2]
[337782157,1726114243150,-500.0,0.00021917,2]
[337782158,1726114243160,-505.23582222,0.00021917,2]
[337782159,1726114243169,-500.0,0.00021917,2]
[337782160,1726114243178,-262.73228511,0.00021917,2]
[337782161,1726114243190,-500.0,0.00021917,2]
[337782162,1726114243200,-500.0,0.00021917,2]
[337782163,1726114243209,-500.0,0.00021917,2]
[337782164,1726114243219,-500.0,0.00021917,2]
[337782165,1726114243228,-500.0,0.00021917,2]
[337782166,1726114243239,-500.0,0.00021917,2]
[337782167,1726114243249,-500.0,0.00021917,2]
[337782168,1726114243259,-500.0,0.00021917,2]
[337782169,1726114243273,-500.0,0.00021917,2]
[337782170,1726114243282,-500.0,0.00021917,2]
[337782171,1726114243292,-500.0,0.00021917,2]
[337782172,1726114243302,-500.0,0.00021917,2]
[337782173,1726114243313,-500.0,0.00021917,2]
[337782174,1726114243322,-285.90845234,0.00021917,2]
[337782175,1726114243332,-500.0,0.00021917,2]
[337782176,1726114243343,-500.0,0.00021917,2]
[337782177,1726114243354,-502.70032257,0.00021917,2]
[337782178,1726114243364,-500.0,0.00021917,2]
[337782179,1726114243374,-500.0,0.00021917,2]
[337782180,1726114243387,-516.61799226,0.00021917,2]
[337782181,1726114243396,-503.54136377,0.00021917,2]
[337782182,1726114243405,-507.2614601,0.00021917,2]
[337782183,1726114243417,-501.76966104,0.00021917,2]
[337782184,1726114243427,-500.0,0.00021917,2]
[337782186,1726114243436,-500.0,0.00021917,2]
[337782187,1726114243446,-500.0,0.00021917,2]
[337782188,1726114243456,-2322.92,0.00021917,2]
[337782189,1726114243466,-500.0,0.00021917,2]
[337782190,1726114243475,-500.0,0.00021917,2]
[337782191,1726114243486,-507.63238794,0.00021917,2]
[337782192,1726114243496,-500.0,0.00021917,2]
[337782193,1726114243506,-500.0,0.00021917,2]
[337782194,1726114243516,-500.0,0.00021917,2]
[337782195,1726114243526,-500.0,0.00021917,2]
[337782196,1726114243536,-500.0,0.00021917,2]
[337782197,1726114243546,-500.0,0.00021917,2]
[337782198,1726114243555,-1831.5,0.00021917,2]
[337782199,1726114243565,-627.73,0.00021917,2]
[337782200,1726114243575,-500.0,0.00021917,2]
[337782201,1726114243584,-1859.18,0.00021917,2]
[337782202,1726114243594,-510.32209435,0.00021917,2]
[337782203,1726114243603,-500.0,0.00021917,2]
[337782204,1726114243613,-500.0,0.00021917,2]
[337782205,1726114243622,-500.0,0.00021917,2]
[337782206,1726114243631,-500.0,0.00021917,2]
[337782207,1726114243641,-500.0,0.00021917,2]
[337782208,1726114243650,-500.0,0.00021917,2]
[337782209,1726114243660,-500.0,0.00021917,2]
[337782210,1726114243669,-548.70788153,0.00021917,2]
[337782211,1726114243679,-500.0,0.00021917,2]
[337782212,1726114243688,-500.0,0.00021917,2]
[337782213,1726114243698,-500.0,0.00021917,2]
[337782214,1726114243707,-500.0,0.00021917,2]
[337782215,1726114243717,-503.98679247,0.00021917,2]
[337782216,1726114243727,-883.88,0.00021917,2]
[337782217,1726114243736,-500.0,0.00021917,2]
[337782218,1726114243894,-500.0,0.00021917,2]
[337782219,1726114243904,-441.3783437,0.00021917,2]
[337782220,1726114243913,-500.0,0.00021917,2]
[337782221,1726114243924,-856.08,0.00021917,2]
[337782222,1726114243933,-500.0,0.00021917,2]
[337782223,1726114243942,-627.25,0.00021917,2]
[337782224,1726114243951,-500.0,0.00021917,2]
[337782225,1726114243960,-535.08,0.00021917,2]
[337782226,1726114243969,-500.0,0.00021917,2]
[337782227,1726114243978,-338.23549102,0.00021917,2]
[337782228,1726114243988,-500.0,0.00021917,2]
[337782229,1726114243997,-151.0,0.00021917,2]
[337782230,1726114244007,-500.0,0.00021917,2]
[337782231,1726114244016,-500.0,0.00021917,2]
[337782232,1726114244025,-500.0,0.00021917,2]
[337782233,1726114244036,-804.51,0.00021917,2]
[337782234,1726114244047,-500.0,0.00021917,2]
[337782235,1726114244057,-1324.83,0.00021917,2]
[337782236,1726114244066,-500.0,0.00021917,2]
[337782237,1726114244076,-521.65970303,0.00021917,2]
[337782238,1726114244085,-500.0,0.00021917,2]
[337782239,1726114244094,-500.0,0.00021917,2]
[337782240,1726114244103,-1817.58,0.00021917,2]
[337782241,1726114244114,-500.0,0.00021917,2]
[337782242,1726114244123,-500.0,0.00021917,2]
[337782243,1726114244134,-500.0,0.00021917,2]
[337782244,1726114244145,-500.0,0.00021917,2]
[337782245,1726114244155,-500.0,0.00021917,2]
[337782246,1726114244166,-501.35762791,0.00021917,2]
[337782247,1726114244175,-500.0,0.00021917,2]
[337782248,1726114244184,-500.0,0.00021917,2]
[337782249,1726114244194,-813.55,0.00021917,2]
[337782250,1726114244203,-500.0,0.00021917,2]
[337782251,1726114244212,-500.0,0.00021917,2]
[337782252,1726114244223,-1174.03,0.00021917,2]
[337782253,1726114244232,-500.0,0.00021917,2]
[337782254,1726114244243,-500.0,0.00021917,2]
[337782255,1726114244255,-500.0,0.00021917,2]
[337782257,1726114244268,-500.0,0.00021917,2]
[337782259,1726114244277,-500.0,0.00021917,2]
[337782261,1726114244290,-500.0,0.00021917,2]
[337782263,1726114244300,-151.0,0.00021917,2]
[337782265,1726114244310,-502.99622555,0.00021917,2]
[337782266,1726114244319,-500.0,0.00021917,2]
[337782267,1726114244329,-483.26872439,0.00021917,2]
[337782269,1726114244339,-500.0,0.00021917,2]
[337782270,1726114244348,-500.0,0.00021917,2]
[337782272,1726114244359,-500.0,0.00021917,2]
[337782273,1726114244368,-367.21276475,0.00021917,2]
[337782274,1726114244377,-500.0,0.00021917,2]
[337782275,1726114244387,-500.0,0.00021917,2]
[337782276,1726114244396,-500.0,0.00021917,2]
[337782277,1726114244405,-500.0,0.00021917,2]
[337782278,1726114244415,-500.0,0.00021917,2]
[337782279,1726114244425,-151.0,0.00021917,2]
[337782280,1726114244435,-473.63739489,0.00021917,2]
[337782281,1726114244445,-504.24803342,0.00021917,2]
[337782282,1726114244454,-566.53,0.00021917,2]
[337782283,1726114244464,-500.0,0.00021917,2]
[337782284,1726114244474,-500.0,0.00021917,2]
[337782285,1726114244483,-500.0,0.00021917,2]
[337782286,1726114244493,-501.56409171,0.00021917,2]
[337782287,1726114244503,-504.21309115,0.00021917,2]
[337782288,1726114244512,-500.0,0.00021917,2]
[337782289,1726114244523,-505.54166548,0.00021917,2]
[337782290,1726114244532,-500.0,0.00021917,2]
[337782291,1726114244543,-500.0,0.00021917,2]
[337782292,1726114244554,-500.0,0.00021917,2]
[337782293,1726114244565,-500.0,0.00021917,2]
[337782294,1726114244575,-156.79114324,0.00021917,2]
[337782295,1726114244584,-787.2,0.00021917,2]
[337782296,1726114244594,-500.0,0.00021917,2]
[337782297,1726114244605,-500.54038114,0.00021917,2]
[337782298,1726114244615,-500.0,0.00021917,2]
[337782299,1726114244627,-500.0,0.00021917,2]
[337782300,1726114244638,-500.0,0.00021917,2]
[337782301,1726114244648,-500.93809778,0.00021917,2]
[337782302,1726114244659,-500.0,0.00021917,2]
[337782303,1726114244678,-500.0,0.00021917,2]
[337782304,1726114244688,-500.0,0.00021917,2]
[337782305,1726114244697,-500.0,0.00021917,2]
[337782306,1726114244706,-22187.73,0.00021917,2]
[337782307,1726114244715,-180.82810532,0.00021917,2]
[337782308,1726114244725,-500.0,0.00021917,2]
[337782309,1726114244734,-862.42,0.00021917,2]
[337782310,1726114244744,-500.0,0.00021917,2]
[337782311,1726114244753,-500.0,0.00021917,2]
[337782312,1726114244762,-973.06,0.00021917,2]
[337782313,1726114244771,-521.74,0.00021917,2]
[337782314,1726114244780,-151.0,0.00021917,2]
[337782315,1726114244789,-1120.39,0.00021917,2]
[337782316,1726114244799,-500.0,0.00021917,2]
[337782317,1726114244808,-500.0,0.00021917,2]
[337782318,1726114244817,-1056.07,0.00021917,2]
[337782319,1726114244827,-1083.69,0.00021917,2]
[337782320,1726114244836,-506.54580111,0.00021917,2]
[337782321,1726114244846,-558.44,0.00021917,2]
[337782322,1726114244855,-2661.41,0.00021917,2]
[337782323,1726114244864,-1973.91,0.00021917,2]
[337782324,1726114244873,-500.0,0.00021917,2]
[337782325,1726114244883,-1808.78,0.00021917,2]
[337782326,1726114244892,-505.80811296,0.00021917,2]
[337782327,1726114244902,-1046.84,0.00021917,2]
[337782328,1726114244915,-500.0,0.00021917,2]
[337782329,1726114244924,-170.53035797,0.00021917,2]
[337782330,1726114244933,-500.0,0.00021917,2]
[337782331,1726114244943,-500.0,0.00021917,2]
[337782332,1726114244952,-510.73912709,0.00021917,2]
[337782333,1726114244961,-500.0,0.00021917,2]
[337782334,1726114244971,-500.0,0.00021917,2]
[337782335,1726114244981,-1032.85,0.00021917,2]
[337782336,1726114244990,-513.67154487,0.00021917,2]
[337782337,1726114245000,-500.70365415,0.00021917,2]
[337782338,1726114245010,-505.25925374,0.00021917,2]
[337782339,1726114245019,-500.0,0.00021917,2]
[337782340,1726114245028,-500.0,0.00021917,2]
[337782341,1726114245038,-1550.55,0.00021917,2]
[337782342,1726114245047,-500.0,0.00021917,2]
[337782343,1726114245056,-200.0,0.00021917,2]
[337782344,1726114245065,-501.77922434,0.00021917,2]
[337782345,1726114245074,-500.0,0.00021917,2]
[337782346,1726114245083,-723.52,0.00021917,2]
[337782347,1726114245092,-518.90428555,0.00021917,2]
[337782348,1726114245102,-500.0,0.00021917,2]
[337782349,1726114245111,-500.0,0.00021917,2]
[337782350,1726114245122,-500.0,0.00021917,2]
[337782351,1726114245134,-500.0,0.00021917,2]
[337782352,1726114245143,-500.0,0.00021917,2]
[337782353,1726114245154,-1566.91,0.00021917,2]
[337782354,1726114245173,-500.0,0.00021917,2]
[337782355,1726114245183,-503.00755211,0.00021917,2]
[337782356,1726114245192,-500.0,0.00021917,2]
[337782357,1726114245201,-500.0,0.00021917,2]
[337782358,1726114245210,-683.51,0.00021917,2]
[337782359,1726114245219,-502.93006318,0.00021917,2]
[337782360,1726114245228,-500.0,0.00021917,2]
[337782361,1726114245237,-500.0,0.00021917,2]
[337782362,1726114245246,-503.08898454,0.00021917,2]
[337782363,1726114245256,-500.0,0.00021917,2]
[337782364,1726114245269,-976.27,0.00021917,2]
[337782365,1726114245278,-706.77,0.00021917,2]
[337782366,1726114245288,-500.0,0.00021917,2]
[337782367,1726114245297,-896.09,0.00021917,2]
[337782368,1726114245307,-486.05285791,0.00021917,2]
[337782369,1726114245316,-500.0,0.00021917,2]
[337782370,1726114245327,-500.0,0.00021917,2]
[337782371,1726114245338,-766.21,0.00021917,2]
[337782372,1726114245349,-151.0,0.00021917,2]
[337782373,1726114245361,-500.0,0.00021917,2]
[337782374,1726114245371,-1387.74,0.00021917,2]
[337782375,1726114245382,-1062.15,0.00021917,2]
[337782376,1726114245392,-500.0,0.00021917,2]
[337782377,1726114245401,-500.0,0.00021917,2]
[337782378,1726114245413,-587.11,0.00021917,2]
[337782379,1726114245422,-151.0,0.00021917,2]
[337782380,1726114245431,-500.0,0.00021917,2]
[337782381,1726114245441,-1514.12,0.00021917,2]
[337782382,1726114245450,-1280.46,0.00021917,2]
[337782383,1726114245460,-523.393542,0.00021917,2]
[337782384,1726114245470,-500.0,0.00021917,2]
[337782385,1726114245479,-500.0,0.00021917,2]
[337782386,1726114245489,-500.0,0.00021917,2]
[337782387,1726114245499,-523.393542,0.00021917,2]
[337782388,1726114245508,-500.0,0.00021917,2]
[337782389,1726114245517,-500.0,0.00021917,2]
[337782390,1726114245527,-248.68483715,0.00021917,2]
[337782391,1726114245536,-500.0,0.00021917,2]
[337782392,1726114245546,-500.0,0.00021917,2]
[337782393,1726114245555,-99.8930799,0.00021917,2]
[337782394,1726114245619,-400.1069201,0.00021917,2]
[337782395,1726114245628,-500.0,0.00021917,2]
[337782396,1726114245638,-500.0,0.00021917,2]
[337782397,1726114245647,-500.0,0.00021917,2]
[337782398,1726114245657,-514.89118887,0.00021917,2]
[337782399,1726114245668,-500.0,0.00021917,2]
[337782400,1726114245678,-502.19304392,0.00021917,2]
[337782401,1726114245687,-500.0,0.00021917,2]
[337782402,1726114245697,-500.0,0.00021917,2]
[337782403,1726114245706,-503.50902903,0.00021917,2]
[337782404,1726114245716,-1261.16,0.00021917,2]
[337782405,1726114245726,-500.0,0.00021917,2]
[337782406,1726114245735,-843.89,0.00021917,2]
[337782407,1726114245745,-568.06,0.00021917,2]
[337782408,1726114245755,-500.0,0.00021917,2]
[337782409,1726114245764,-1191.59,0.00021917,2]
[337782410,1726114245773,-500.0,0.00021917,2]
[337782411,1726114245782,-500.0,0.00021917,2]
[337782412,1726114245793,-508.34614554,0.00021917,2]
[337782413,1726114245801,-461.85080887,0.00021917,2]
[337782414,1726114245811,-500.0,0.00021917,2]
[337782415,1726114245821,-1521.42,0.00021917,2]
[337782416,1726114245830,-514.13603881,0.00021917,2]
[337782417,1726114245839,-500.0,0.00021917,2]
[337782418,1726114245849,-500.0,0.00021917,2]
[337782419,1726114245858,-504.20783263,0.00021917,2]
[337782420,1726114245867,-500.0,0.00021917,2]
[337782421,1726114245876,-500.0,0.00021917,2]
[337782422,1726114245886,-500.0,0.00021917,2]
[337782423,1726114245895,-151.0,0.00021917,2]
[337782424,1726114245905,-500.0,0.00021917,2]
[337782425,1726114245915,-500.0,0.00021917,2]
[337782426,1726114245924,-500.0,0.00021917,2]
[337782427,1726114245934,-537.56585578,0.00021917,2]
[337782428,1726114245943,-500.0,0.00021917,2]
[337782429,1726114245953,-500.0,0.00021917,2]
[337782430,1726114245962,-500.0,0.00021917,2]
[337782431,1726114245972,-500.0,0.00021917,2]
[337782432,1726114245982,-500.0,0.00021917,2]
[337782433,1726114245992,-500.0,0.00021917,2]
[337782434,1726114246001,-500.0,0.00021917,2]
[337782435,1726114246011,-500.0,0.00021917,2]
[337782436,1726114246021,-156.25321,0.00021917,2]
[337782437,1726114246033,-500.0,0.00021917,2]
[337782438,1726114246044,-500.0,0.00021917,2]
[337782439,1726114246053,-1649.99,0.00021917,2]
[337782440,1726114246064,-500.0,0.00021917,2]
[337782441,1726114246073,-501.01141681,0.00021917,2]
[337782442,1726114246083,-500.0,0.00021917,2]
[337782443,1726114246095,-500.0,0.00021917,2]
[337782444,1726114246106,-1057.9,0.00021917,2]
[337782445,1726114246117,-500.0,0.00021917,2]
[337782446,1726114246128,-500.0,0.00021917,2]
[337782447,1726114246138,-322.87420927,0.00021917,2]
[337782448,1726114246147,-2444.36,0.00021917,2]
[337782449,1726114246156,-500.0,0.00021917,2]
[337782450,1726114246167,-500.0,0.00021917,2]
[337782451,1726114246177,-156.25321,0.00021917,2]
[337782452,1726114246186,-564.06,0.00021917,2]
[337782453,1726114246197,-2247.96,0.00021917,2]
[337782454,1726114246206,-500.0,0.00021917,2]
[337782456,1726114246228,-500.0,0.00021917,2]
[337782457,1726114246238,-500.0,0.00021917,2]
[337782458,1726114246249,-1985.43,0.00021917,2]
[337782459,1726114246260,-501.58225505,0.00021917,2]
[337782460,1726114246355,-504.3176939,0.00021917,2]
[337782461,1726114246365,-308.3565083,0.00021917,2]
[337782462,1726114246375,-1471.6,0.00021917,2]
[337782463,1726114246384,-500.0,0.00021917,2]
[337782464,1726114246394,-500.0,0.00021917,2]
[337782465,1726114246403,-503.58237892,0.00021917,2]
[337782466,1726114246414,-631.56,0.00021917,2]
[337782467,1726114246428,-500.0,0.00021917,2]
[337782468,1726114246438,-500.0,0.00021917,2]
[337782469,1726114246450,-501.56382273,0.00021917,2]
[337782470,1726114246461,-500.0,0.00021917,2]
[337782471,1726114246470,-500.0,0.00021917,2]
[337782472,1726114246481,-500.0,0.00021917,2]
[337782473,1726114246491,-500.0,0.00021917,2]
[337782474,1726114246501,-500.0,0.00021917,2]
[337782475,1726114246512,-590.33,0.00021917,2]
[337782476,1726114246522,-565.0,0.00021917,2]
[337782477,1726114246532,-500.0,0.00021917,2]
[337782478,1726114246542,-500.0,0.00021917,2]
[337782479,1726114246553,-500.0,0.00021917,2]
[337782480,1726114246563,-500.0,0.00021917,2]
[337782481,1726114246572,-500.0,0.00021917,2]
[337782482,1726114246581,-500.0,0.00021917,2]
[337782483,1726114246591,-151.0,0.00021917,2]
[337782484,1726114246600,-500.0,0.00021917,2]
[337782485,1726114246610,-501.07943625,0.00021917,2]
[337782486,1726114246622,-463.25909354,0.00021917,2]
[337782487,1726114247122,-1088.89090646,0.00021917,2]
[337782488,1726114247131,-500.0,0.00021917,2]
[337782489,1726114247141,-500.0,0.00021917,2]
[337782490,1726114247150,-500.56302159,0.00021917,2]
[337782491,1726114247159,-1090.97,0.00021917,2]
[337782492,1726114247169,-500.0,0.00021917,2]
[337782493,1726114247178,-500.0,0.00021917,2]
[337782494,1726114247187,-151.0,0.00021917,2]
[337782495,1726114247196,-507.82,0.00021917,2]